Cogmind - Beta 15 @@@ ROGUE MODE // 2025.07.28 @ 21:39:48 Player: Nat Result: Destroyed by 6Q-810(R) with Subdweller Shrapnel Launcher Performance ------------- Evolutions (0) 0 Regions Visited (2) 400 Robots Destroyed (13) 65 Value Destroyed (340) 340 Prototype IDs (2) 40 Alien Tech Used (0) 0 Bonus (0) 0 TOTAL SCORE: 845 Bonus ------- None Cogmind --------- Core Integrity 0/250 Matter 300/300 Energy 100/100 System Corruption 0% Temperature Cool (0) Movement Walking (120) Location -10/Subcaves Parts ------- > --- POWER (1) -------- (None) > --- PROPULSION (2) --- Myomer Leg > --- UTILITY (2) ------ (None) > --- WEAPON (2) ------- Makeshift Axe > --- INVENTORY (5) ---- Ion Engine Aluminum Leg Aluminum Leg Carbon-fiber Leg Carbon-fiber Leg Peak State ------------ > --- POWER ------------ Light Angular Momentum Engine > --- PROPULSION ------- Myomer Leg Myomer Leg > --- UTILITY ---------- Scrap Shield > --- WEAPON ----------- Beamcaster Assault Rifle > --- INVENTORY -------- Ion Engine Aluminum Leg Aluminum Leg Light Assault Rifle Light Assault Rifle [Rating: 29] Favorites ----------- Power Light Ion Engine Engine Light Ion Engine Propulsion Myomer Leg Leg Myomer Leg Utility Scrap Shield Storage Small Storage Unit Protection Scrap Shield Weapon Assault Rifle Energy Gun Small Laser Ballistic Gun Assault Rifle Slashing Weapon Makeshift Axe Build | -11 -10 -10 ------- Run | Yrd Mat Sub Slots Evolved . | . . . Power . | . . . Propulsion . | . . . Utility . | . . . Weapon . | . . . Parts Attached 14 | 6 . 8 Power 3 | 1 . 2 Engine 3 | 1 . 2 Core . | . . . Reactor . | . . . Propulsion 4 | 2 . 2 Treads . | . . . Leg 4 | 2 . 2 Wheel . | . . . Hover . | . . . Flight . | . . . Utility 3 | 1 . 2 Device . | . . . Storage 1 | 1 . . Processor . | . . . Hackware . | . . . Protection 2 | . . 2 Artifact . | . . . Weapon 4 | 2 . 2 Energy Gun 2 | 1 . 1 Energy Cannon . | . . . Ballistic Gun 1 | 1 . . Ballistic Cannon . | . . . Launcher . | . . . Special Weapon . | . . . Impact Weapon . | . . . Slashing Weapon 1 | . . 1 Piercing Weapon . | . . . Special Melee Weapon . | . . . Unidentified Prototypes . | . . . Parts Lost 7 | . . 7 Power 2 | . . 2 Propulsion 1 | . . 1 Utility 2 | . . 2 Weapon 2 | . . 2 Highest Loss Streak 3 | . . 3 To Critical Strikes . | . . . Average Backups 4 | 1 4 4 Power . | . 1 1 Propulsion 3 | 1 2 3 Utility . | . . . Weapon . | . 1 . Tool/Special . | . . . Unused Backups 7 | . . 7 Power 1 | . . 1 Propulsion 4 | . . 4 Utility . | . . . Weapon 2 | . . 2 Tool/Special . | . . . Average Slot Usage (%) 72 | . 85 69 Engine 12 | . 14 11 Leg 27 | . 28 27 Storage 3 | . 14 . Protection 8 | . . 10 Energy Gun 8 | . 14 7 Ballistic Gun 10 | . 14 9 Slashing Weapon 1 | . . 1 Peak Build Rating 29 | 6 6 29 Average Rating 17 | 5 6 21 On Entrance 4 | . 6 6 Naked Turns . | . . . Heaviest Build 34 | 11 11 34 Greatest Support 50 | 20 20 50 Greatest Overweight (x) 1 | . . 1 Average Overweight (x) . | . . . Largest Inventory Capacity 8 | 8 8 8 Average Capacity 5 | 7 8 5 Most Carried 7 | 4 5 7 Average Carried 4 | 2 4 5 Final Capacity 8 | 8 8 5 Final Carried 5 | 4 5 5 Class Distribution -------------------- 56% | Scavenger-Mutant 43% | Mutant Dominant Class ---------------- Mutant | -10/Materials Scavenger-Mutant | -10/Subcaves Resources | -11 -10 -10 ----------- Run | Yrd Mat Sub Matter Collected 420 | 219 62 139 Remotely . | . . . Salvage Created 388 | . 96 292 Parts 34 | . 10 24 Haulers Intercepted . | . . . Recyclers Shooed . | . . . Parts Field Recycled . | . . . Retrieved Matter . | . . . Parts Self-Destructed 11 | . . 11 Prevented . | . . . Kills | -11 -10 -10 ------- Run | Yrd Mat Sub Combat Hostiles Destroyed 13 | . 6 7 Melee 1 | . . 1 Guns 12 | . 6 6 Classes Destroyed 2 | . 1 1 Swarmer 6 | . 6 . Subdweller 7 | . . 7 Best Kill Streak 2 | . 2 2 Combat Bots Only 2 | . 2 2 Max Kills in Single Turn 1 | . 1 1 Gunslinging . | . . . Exploded . | . . . Melee 1 | . . 1 Uniques/NPCs Destroyed . | . . . Combat | -11 -10 -10 -------- Run | Yrd Mat Sub Hostile Shots Fired 136 | . 32 104 Missed 59 | . 11 48 Hits 77 | . 21 56 Projectile 77 | . 21 56 AOE 3 | . . 3 Critical Strikes 2 | . . 2 Damage Taken 1223 | . 164 1059 Core 252 | . 25 227 Absorbed by Shields . | . . . Core Remaining (%) 100 | 100 . . Volleys Fired 31 | . 7 24 Largest 2 | . 2 2 Hottest 95 | . 60 95 Shots Fired 60 | . 14 46 Gun 60 | . 14 46 Cannon . | . . . Launcher . | . . . Special . | . . . Kinetic 31 | . 7 24 Thermal 29 | . 7 22 Explosive . | . . . Electromagnetic . | . . . Robot Hit Streak 34 | . 6 34 Robot Miss Streak 1 | . 1 1 Penetration Max . | . . . Secondary Targets . | . . . Shots Hit Robots 49 | . 10 39 Core Hits 23 | . 6 17 Critical Kills . | . . . Critical Parts Destroyed . | . . . Critical Strikes 1 | . . 1 Burn 1 | . . 1 Melee Attacks 2 | . . 2 Impact . | . . . Slashing 2 | . . 2 Piercing . | . . . Sneak Attacks . | . . . Combat Hostiles . | . . . Follow-up Attacks . | . . . Damage Inflicted 682 | . 125 557 Guns 642 | . 125 517 Cannons . | . . . Explosions . | . . . Melee 30 | . . 30 Ramming 10 | . . 10 Kinetic 284 | . 67 217 Thermal 358 | . 58 300 Explosive . | . . . Electromagnetic . | . . . Impact . | . . . Slashing 30 | . . 30 Piercing . | . . . Highest Corruption . | . . . Average Corruption . | . . . Corruption Purged . | . . . Corruption Blocked . | . . . Overload Shots . | . . . Overflow Damage . | . . . Projectiles . | . . . Explosions . | . . . Melee . | . . . Knockbacks . | . . . Impact . | . . . Kinetic . | . . . Secondary . | . . . Self-Inflicted Damage . | . . . Shots . | . . . Rammed . | . . . Targets Rammed 3 | . . 3 Kicked 3 | . . 3 Crushed . | . . . Highest Temperature 241 | . . 241 Average Temperature 130 | . . 130 Received Heat Transfer 483 | . . 483 Siege Activations . | . . . Martial Activations . | . . . Shielding Activations . | . . . Robots Disrupted . | . . . Combat Hostiles . | . . . Robots Corrupted . | . . . Combat Hostiles . | . . . Parts Fried . | . . . Impact Corruptions . | . . . Robots Melted . | . . . Combat Hostiles . | . . . Parts Melted 3 | . 2 1 Heat Transferred 782 | . 125 657 Parts Sabotaged . | . . . Parts Stolen . | . . . Parts Stripped . | . . . Power Chain Reactions . | . . . Alert | -11 -10 -10 ------- Run | Yrd Mat Sub Maximum Alert Level . | . . . Low Security (%) 100 | 100 100 . Level 1 . | . . . Level 2 . | . . . Level 3 . | . . . Level 4 . | . . . Level 5 . | . . . High Security . | . . . Max Security . | . . . Peak Influence 90 | . 90 . Initial . | . . . Average 41 | . 55 . Influence Increases 250 | . 190 60 Destroy 0b10 Robot/C 120 | . 120 . Destroy Leader 20 | . 20 . Successful Hack 5 | . 5 . Lose Combat Pursuer 105 | . 45 60 Influence Decreases 250 | . 100 150 Entered New Map 44 | . . 44 Time Decay 196 | . 100 96 Lost Part 10 | . . 10 Squads Dispatched . | . . . Investigation . | . . . Extermination . | . . . Reinforcement . | . . . Assault . | . . . Garrison . | . . . Intercept . | . . . Searches Triggered . | . . . Construction Impeded . | . . . Haulers Reinforced . | . . . Active Scanning Responses . | . . . Cargo Convoy Interrupts . | . . . Stealth | -11 -10 -10 --------- Run | Yrd Mat Sub Distress Signals . | . . . Communications Jammed . | . . . Distress Signals . | . . . Times Spotted 27 | . 8 19 Peak Tracking Total 6 | . 3 6 Tactical Retreats 4 | . 2 2 Traps | -11 -10 -10 ------- Run | Yrd Mat Sub Traps Triggered . | . . . Indirectly . | . . . Trap Hack Attempts . | . . . Triggered . | . . . Disarmed . | . . . Reprogrammed . | . . . Reused . | . . . Traps Extracted . | . . . Installed . | . . . Triggered . | . . . Machines | -11 -10 -10 ---------- Run | Yrd Mat Sub Machines Disabled . | . . . Max in Single Turn . | . . . Machines Repaired . | . . . Machines Dismantled . | . . . Machines Sabotaged . | . . . Overloaded Fab Kills . | . . . Hacking | -11 -10 -10 --------- Run | Yrd Mat Sub Machines Accessed 3 | . 3 . Terminals 2 | . 2 . Fabricators . | . . . Repair Stations . | . . . Recycling Units 1 | . 1 . Scanalyzers . | . . . Garrison Access . | . . . Total Hacks 10 | . 10 . Successful 4 | . 4 . Failed 6 | . 6 . Catastrophic . | . . . Database Lockouts . | . . . Manual . | . . . Terminals 8 | . 8 . Fabricators . | . . . Repair Stations . | . . . Recycling Units 2 | . 2 . Scanalyzers . | . . . Garrison Access . | . . . Terminal Hacks 2 | . 2 . Prototype ID Bank 1 | . 1 . Zone Layout 1 | . 1 . Fabricator Hacks . | . . . Repair Station Hacks . | . . . Recycling Unit Hacks 2 | . 2 . Retrieve Matter 1 | . 1 . Retrieve Components 1 | . 1 . Scanalyzer . | . . . Garrison Access Hacks . | . . . Unauthorized Hacks . | . . . Terminals . | . . . Fabricators . | . . . Repair Stations . | . . . Recycling Units . | . . . Scanalyzers . | . . . Garrison Access . | . . . Data Cores Recovered . | . . . Used . | . . . Hacking Detections 3 | . 3 . Full Trace Events . | . . . Feedback Events . | . . . Feedback Blocked . | . . . Robot Schematics Acquired . | . . . Robots Built . | . . . Authchips . | . . . Time . | . . . Total Robot Build Rating . | . . . Part Schematics Acquired . | . . . Parts Built . | . . . Authchips . | . . . Time . | . . . Total Part Build Rating . | . . . Parts Repaired . | . . . Time . | . . . Parts Recycled . | . . . Recycled Matter . | . . . Retrieved Matter . | . . . Retrieved Components . | . . . Parts Scanalyzed . | . . . Part Schematics Acquired . | . . . Parts Damaged . | . . . Bothacking | -11 -10 -10 ------------ Run | Yrd Mat Sub Used RIF Installer . | . . . Robots Hacked . | . . . Non-combat . | . . . Combat . | . . . Robot Hacks Applied . | . . . Relay Couplers Released . | . . . Fabnet Peak Effective % . | . . . Robots Rewired . | . . . Allies Hacked . | . . . Hacks Repelled . | . . . Allies | -11 -10 -10 -------- Run | Yrd Mat Sub Total Allies . | . . . Largest Group . | . . . Highest-Rated Group . | . . . Highest-Rated Ally . | . . . Total Orders . | . . . Ally Attacks . | . . . Total Damage . | . . . Kills . | . . . Allies Corrupted . | . . . Allies Melted . | . . . Intel | -11 -10 -10 ------- Run | Yrd Mat Sub Active Infowar (turns) . | . . . Robot Analysis Total . | . . . Derelict Logs Recovered 1 | . . 1 Drone Launches . | . . . Drone Recoveries . | . . . Exploration | -11 -10 -10 ------------- Run | Yrd Mat Sub Turns Passed 1270 | 75 235 960 Spaces Moved 812 | 52 101 659 Core 2 | 2 . . Treads . | . . . Legs 810 | 50 101 659 Wheels . | . . . Hover . | . . . Flight . | . . . Fastest Speed 50 | 50 120 120 Average Speed 120 | 117 120 120 Slowest Speed 190 | 120 120 190 Overloaded Moves . | . . . Propulsion Burnouts . | . . . Robots Hopped . | . . . Potential Cave-ins . | . . . Cave-ins Triggered . | . . . Exploration Rate (%) 17 | 4 17 32 Regions Visited 2 Branch Regions 1 Pre-discovered Areas 1 | . . 1 Known Exits Taken . | . . . Unknown Exits Taken 2 | 1 1 . Scrap Searched . | . . . Spaces Dug . | . . . Terrain Destroyed . | . . . Melee . | . . . Projectile . | . . . AOE . | . . . Terrain Rammed . | . . . Walls Destroyed . | . . . Machines Disabled . | . . . Actions | -11 -10 -10 --------- Run | Yrd Mat Sub Total 1042 | 63 201 778 Wait 164 | 2 93 69 Move 810 | 51 100 659 Hop . | . . . Pick Up 8 | 4 1 3 Fast Attach 9 | 6 . 3 Attach 1 | . . 1 Detach . | . . . Swap 4 | . . 4 Drop 7 | . . 7 Fire 31 | . 7 24 Melee 2 | . . 2 Ram . | . . . Kick 3 | . . 3 Crush . | . . . Escape Stasis . | . . . Rewire 3 | . . 3 Trap . | . . . Miscellaneous . | . . . Route ------- -11/Scrapyard -10/Materials -10/Subcaves (discovered 1 exit: [*Mat]) History --------- Turn | Location | Event 4 | -11/Scrapyard | Discovered new exit (range 16) 76 | -11/Scrapyard | Entered Materials 278 | -10/Materials | Discovered new exit (range 10) 305 | -10/Materials | Build established: Mutant 311 | -10/Materials | Entered Subcaves 311 | -10/Subcaves | Discovered new exit (range 10) 350 | -10/Subcaves | Ambushed by swarm of Subdwellers 418 | -10/Subcaves | Lost 4 allies 792 | -10/Subcaves | Core integrity fell below 50% 876 | -10/Subcaves | Learned location of Zion (-6) 1110 | -10/Subcaves | Build established: Scavenger-Mutant 1262 | -10/Subcaves | Lost 3 parts (1p1n1u) 1271 | -10/Subcaves | Destroyed by 6Q-810(R) with Subdweller Shrapnel Launcher Last Messages --------------- U6-I2T(R) is broken beyond repair. Attempting to rewire PE-DEF(R). PE-DEF(R) is broken beyond repair. Attempting to rewire OV-7JI(R). OV-7JI(R) is broken beyond repair. While in examine/look mode, press 's' to manually set the cursor location as a relative view centerpoint. Try it now. Designate your own position to cancel the effect and resume automated centerpoint adjustments, or reset an automated centerpoint. The manual also describes advanced options for modifying the automation algorithm. Acquired Mak. Axe. Acquired 10 matter. Scrap Shield destroyed. Critical hit (Meltdown: +270). TF-ATE(R) destroyed. Sub. Power Source destroyed. Myomer Leg destroyed. Map ----- +----------------------------------------------------+ | ???????????????????????????????????### ##???????? | | ?????????????????????????????????????# #???????? | | ?????????????????????????????????????# #???????? | | ?????????????????????????????????????# #???????? | | ????????????????????????????????????## ##???????? | | ????????????????????????????????????# #???????? | | ??????????????######????????????????# #???????? | | ?????????????## #???####????????# #???????? | | ????????????## #### ##???????## #???????? | | ???????????? #???????## #???????? | | ????????????? ???????# ##???????? | | ??????????????? ????????## ##???????? | | ????????????????# ;;######???## #???????? | | ?????????????????# ;; ""###?# #???????? | | ???????????????????#; ### #???????? | | ????????????????????#; ""## #???????? | | ????????????????????#;; "" #???????? | | ????????????????????##; ##???????? | | ?????????????????????#; ; " #####????? | | ??????????????????#?## ##""" " # ##???? | | ???????????# # # # ##### &&### | | ???????????# ##??# """ "#"#&=&& "" | | ??????????????## ## ### "### ######%"" # | | ?????????????# ##?# ######??###????##] # | | ?????????????### ????####R #???????????????#" | | ???????????????#???????##@ ##??????????????""" | | ???????????????????????# ##????????????? "" | | ???????????????????????# ##????????????" "" | | ???????????????????????# #???????????? "" | | ???????????????????????## ###????????????????"" | | ????????????????????????# ##??????????????????? | | ????????????????????????#### #??????????????????? | | ???????????????????????????## #??????????????????? | | ????????????????????????????###??????????????????? | | ?????????????????????????????????????????????????? | | ?????????????????????????????????????????????????? | | ?????????????????????????????????????????????????? | | ?????????????????????????????????????????????????? | | ?????????????????????????????????????????????????? | | ?????????????????????????????????????????????????? | | ?????????????????????????????????????????????????? | | ?????????????????????????????????????????????????? | | ?????????????????????????????????????????????????? | | ?????????????????????????????????????????????????? | | ?????????????????????????????????????????????????? | | ?????????????????????????????????????????????????? | | ?????????????????????????????????????????????????? | | ?????????????????????????????????????????????????? | | ?????????????????????????????????????????????????? | | | +----------------------------------------------------+ Best States ------------- Heat Dissipation 25 Energy Generation 18 Energy Capacity 200 Matter Stores 300 Matter Capacity 300 Sight Range 16 Terrain Scan Density 10 Armor Coverage 800 Evasion (%) 55 Item Schematics ----------------- None Robot Schematics ------------------ None Fabricated ------------ Nothing Repaired ---------- Nothing Alien Tech Used ----------------- None Achievements -------------- None Challenges ------------ None Game ------ Seed LayeredRestorationSystem Manual? 0 Play Time 00:19:27 Cumulative 4.4 hours Start 2025.07.28 @ 21:15:14 End 2025.07.28 @ 21:39:48 Sessions 1 Manual Loads 0 Difficulty Rogue Special Mode None Game No. 11 Rogue 11 Adventurer 0 Explorer 0 Win Type - Total 0 Types 0/0/0/0/0/0/0/0/0/0 Lore% 6 Gallery% 7 Achievement% 7 Wizard Run 0 Options --------- Layout 1 ASCII 0 Keyboard 0 Movement Mouse Keybinds 0 Fullscreen 1 Font 24/Smallcaps Map View 25x20 Zoom Use 88% Tactical HUD 0 Map Filters NONE Filters NONE Steam 1 RUN: 1837fa7b-8596-4804-8210-cfcd0b63e470